[Event "*** Titled Tuesday Blitz"]
[Site "Chess.com"]
[Date "2021.03.09"]
[Round "5"]
[White "LuisFSiles"]
[Black "Ziyamammadov"]
[Result "1-0"]
[WhiteElo "2306"]
[BlackElo "1790"]
[TimeControl "180+1"]
[EndTime "10:59:11 PST"]
[Termination "LuisFSiles won on time"]

1. e4 {[%clk 0:02:54.7]} 1... e6 {[%clk 0:02:59.7]} 2. d4 {[%clk 0:02:53.9]}
2... d5 {[%clk 0:02:59.7]} 3. Nd2 {[%clk 0:02:53.4]} 3... dxe4 {[%clk
0:02:59.6]} 4. Nxe4 {[%clk 0:02:53.2]} 4... Nf6 {[%clk 0:03:00.2]} 5. Nxf6+
{[%clk 0:02:50.6]} 5... Qxf6 {[%clk 0:02:59.6]} 6. Nf3 {[%clk 0:02:50.9]} 6...
h6 {[%clk 0:02:58.9]} 7. Bd3 {[%clk 0:02:44.7]} 7... Bd6 {[%clk 0:02:57.9]} 8.
Qe2 {[%clk 0:02:39.7]} 8... Nc6 {[%clk 0:02:52.4]} 9. c3 {[%clk 0:02:38.2]} 9...
O-O {[%clk 0:02:50.1]} 10. Qe4 {[%clk 0:02:26.7]} 10... Re8 {[%clk 0:02:30.2]}
11. O-O {[%clk 0:02:01.7]} 11... e5 {[%clk 0:02:11.5]} 12. Re1 {[%clk
0:01:35.5]} 12... Bd7 {[%clk 0:02:01.5]} 13. d5 {[%clk 0:01:33.4]} 13... Ne7
{[%clk 0:01:41.4]} 14. Qh4 {[%clk 0:00:59.7]} 14... Qxh4 {[%clk 0:01:31.9]} 15.
Nxh4 {[%clk 0:01:00.6]} 15... Nxd5 {[%clk 0:01:31.5]} 16. Bd2 {[%clk 0:00:54.3]}
16... Nf6 {[%clk 0:01:24.9]} 17. Rad1 {[%clk 0:00:46.3]} 17... Rad8 {[%clk
0:01:05.7]} 18. Bc4 {[%clk 0:00:42.5]} 18... g5 {[%clk 0:00:38.9]} 19. Nf3
{[%clk 0:00:39.9]} 19... e4 {[%clk 0:00:38.4]} 20. Nd4 {[%clk 0:00:39.5]} 20...
a6 {[%clk 0:00:20.5]} 21. b4 {[%clk 0:00:38.2]} 21... Be5 {[%clk 0:00:20.2]} 22.
Nb3 {[%clk 0:00:36]} 22... Ba4 {[%clk 0:00:18.9]} 23. h4 {[%clk 0:00:31.9]}
23... b5 {[%clk 0:00:18.9]} 24. Bf1 {[%clk 0:00:30.7]} 24... gxh4 {[%clk
0:00:18.9]} 25. Bxh6 {[%clk 0:00:29.3]} 25... Bxc3 {[%clk 0:00:17]} 26. Rxd8
{[%clk 0:00:26.5]} 26... Rxd8 {[%clk 0:00:17]} 27. Rc1 {[%clk 0:00:27]} 27...
Bxb4 {[%clk 0:00:16]} 28. Bg5 {[%clk 0:00:27.1]} 28... Be7 {[%clk 0:00:13.3]}
29. Nc5 {[%clk 0:00:27.6]} 29... Nd5 {[%clk 0:00:09.7]} 30. Bxe7 {[%clk
0:00:25.1]} 30... Nxe7 {[%clk 0:00:10.6]} 31. Nxe4 {[%clk 0:00:25.5]} 31... b4
{[%clk 0:00:08.1]} 32. Nf6+ {[%clk 0:00:25.8]} 32... Kg7 {[%clk 0:00:07.1]} 33.
Nh5+ {[%clk 0:00:26.7]} 33... Kh6 {[%clk 0:00:06.3]} 34. Nf4 {[%clk 0:00:27.6]}
34... c6 {[%clk 0:00:05.1]} 35. Rc5 {[%clk 0:00:27.6]} 35... Bb5 {[%clk
0:00:04.3]} 36. Rh5+ {[%clk 0:00:27.6]} 36... Kg7 {[%clk 0:00:04.4]} 37. Rg5+
{[%clk 0:00:28.1]} 37... Kf8 {[%clk 0:00:04.2]} 38. Rh5 {[%clk 0:00:27.3]} 38...
Rd1 {[%clk 0:00:04.8]} 39. Kh2 {[%clk 0:00:26.9]} 39... Bxf1 {[%clk 0:00:03.9]}
40. Rh6 {[%clk 0:00:22.5]} 40... Kg7 {[%clk 0:00:03.7]} 41. Rxh4 {[%clk
0:00:19.6]} 41... Bb5 {[%clk 0:00:04.1]} 42. Rg4+ {[%clk 0:00:20.5]} 42... Kf8
{[%clk 0:00:03.2]} 43. Nh3 {[%clk 0:00:21.4]} 43... Ng6 {[%clk 0:00:01.6]} 44.
Ng5 {[%clk 0:00:22.3]} 44... Kg7 {[%clk 0:00:01.1]} 45. f4 {[%clk 0:00:21.3]}
1-0

[Event "*** Titled Tuesday Blitz"]
[Site "Chess.com"]
[Date "2021.03.09"]
[Round "5"]
[White "ural58"]
[Black "Lestofante90"]
[Result "1-0"]
[WhiteElo "2576"]
[BlackElo "2729"]
[TimeControl "180+1"]
[EndTime "10:59:12 PST"]
[Termination "ural58 won by resignation"]

1. e4 {[%clk 0:03:00.9]} 1... e5 {[%clk 0:02:48.5]} 2. f4 {[%clk 0:03:00.2]}
2... exf4 {[%clk 0:02:47.6]} 3. Bc4 {[%clk 0:02:59.8]} 3... Nf6 {[%clk
0:02:45.8]} 4. Nc3 {[%clk 0:02:59.6]} 4... g6 {[%clk 0:02:30.6]} 5. d4 {[%clk
0:02:56.8]} 5... Nh5 {[%clk 0:02:07.5]} 6. Nd5 {[%clk 0:02:23.3]} 6... Qh4+
{[%clk 0:01:59.4]} 7. Kf1 {[%clk 0:02:21.8]} 7... Qd8 {[%clk 0:01:32.2]} 8. Nxf4
{[%clk 0:02:01]} 8... Nxf4 {[%clk 0:01:27.3]} 9. Bxf4 {[%clk 0:02:00.3]} 9...
Bg7 {[%clk 0:01:27.8]} 10. Nf3 {[%clk 0:01:56.3]} 10... O-O {[%clk 0:01:27.2]}
11. Kf2 {[%clk 0:01:56.4]} 11... d6 {[%clk 0:01:13.5]} 12. Re1 {[%clk
0:01:55.4]} 12... Nd7 {[%clk 0:01:11.6]} 13. c3 {[%clk 0:01:51.8]} 13... Nf6
{[%clk 0:01:11]} 14. h3 {[%clk 0:01:49.8]} 14... d5 {[%clk 0:01:10.3]} 15. exd5
{[%clk 0:01:49.2]} 15... Nxd5 {[%clk 0:01:10.3]} 16. Bg3 {[%clk 0:01:46.6]}
16... Be6 {[%clk 0:01:08.9]} 17. Qb3 {[%clk 0:01:35.4]} 17... a6 {[%clk
0:01:02.2]} 18. a4 {[%clk 0:01:35]} 18... Rb8 {[%clk 0:00:49.8]} 19. a5 {[%clk
0:01:31.9]} 19... b5 {[%clk 0:00:49.7]} 20. axb6 {[%clk 0:01:31.3]} 20... Rxb6
{[%clk 0:00:50.3]} 21. Qa2 {[%clk 0:01:25]} 21... Qb8 {[%clk 0:00:45.2]} 22. Re2
{[%clk 0:01:18.8]} 22... Rd8 {[%clk 0:00:31.1]} 23. Kg1 {[%clk 0:01:18]} 23...
h6 {[%clk 0:00:28]} 24. Rae1 {[%clk 0:01:16.3]} 24... Rc6 {[%clk 0:00:26.4]} 25.
Nd2 {[%clk 0:00:54]} 25... Qb7 {[%clk 0:00:16.5]} 26. Kh2 {[%clk 0:00:53.6]}
26... Rb6 {[%clk 0:00:15.8]} 27. Ne4 {[%clk 0:00:51.4]} 27... Qc6 {[%clk
0:00:13.4]} 28. Nc5 {[%clk 0:00:50]} 28... Bc8 {[%clk 0:00:13.3]} 29. Bxd5
{[%clk 0:00:47.3]} 29... Qxd5 {[%clk 0:00:05.7]} 30. Qxd5 {[%clk 0:00:46.7]}
30... Rxd5 {[%clk 0:00:06.5]} 31. Re8+ {[%clk 0:00:46.8]} 31... Kh7 {[%clk
0:00:07.1]} 32. Rxc8 {[%clk 0:00:45.8]} 32... Rxb2 {[%clk 0:00:07.7]} 33. Rxc7
{[%clk 0:00:42.8]} 33... Rf5 {[%clk 0:00:07.3]} 34. Ree7 {[%clk 0:00:36.3]}
34... Kg8 {[%clk 0:00:06]} 35. Nd3 {[%clk 0:00:33.6]} 35... Rd2 {[%clk
0:00:03.2]} 36. Ne5 {[%clk 0:00:26.7]} 36... Re2 {[%clk 0:00:03.5]} 37. Nxg6
{[%clk 0:00:21.9]} 37... Rc2 {[%clk 0:00:01.6]} 38. Nh4 {[%clk 0:00:20.5]} 38...
Rg5 {[%clk 0:00:01.3]} 39. Nf3 {[%clk 0:00:19.9]} 39... Rh5 {[%clk 0:00:01.6]}
40. Rxf7 {[%clk 0:00:19.4]} 40... Bf8 {[%clk 0:00:02.3]} 41. Rfd7 {[%clk
0:00:16.5]} 41... a5 {[%clk 0:00:02.8]} 42. Rc8 {[%clk 0:00:16.3]} 42... Rf5
{[%clk 0:00:03.7]} 43. Bd6 {[%clk 0:00:15.8]} 43... a4 {[%clk 0:00:03.7]} 44.
Rxf8+ {[%clk 0:00:15.2]} 44... Rxf8 {[%clk 0:00:03]} 45. Bxf8 {[%clk 0:00:15.8]}
45... Kxf8 {[%clk 0:00:03.8]} 46. Ra7 {[%clk 0:00:15.9]} 46... Rxc3 {[%clk
0:00:03.6]} 47. Rxa4 {[%clk 0:00:15.8]} 1-0

[Event "*** Titled Tuesday Blitz"]
[Site "Chess.com"]
[Date "2021.03.09"]
[Round "5"]
[White "Sadykov_Ramil"]
[Black "chesslh19"]
[Result "1-0"]
[WhiteElo "2566"]
[BlackElo "2280"]
[TimeControl "180+1"]
[EndTime "10:59:12 PST"]
[Termination "Sadykov_Ramil won by checkmate"]

1. d4 {[%clk 0:03:00.2]} 1... Nf6 {[%clk 0:02:36.8]} 2. Nc3 {[%clk 0:02:57.3]}
2... d5 {[%clk 0:02:36]} 3. Bf4 {[%clk 0:02:54.4]} 3... c5 {[%clk 0:02:35.8]} 4.
e3 {[%clk 0:02:52.9]} 4... cxd4 {[%clk 0:02:36.2]} 5. exd4 {[%clk 0:02:52.9]}
5... a6 {[%clk 0:02:36.8]} 6. Nf3 {[%clk 0:02:51.6]} 6... Bg4 {[%clk 0:02:31]}
7. h3 {[%clk 0:02:49.8]} 7... Bxf3 {[%clk 0:02:30.7]} 8. Qxf3 {[%clk 0:02:50.7]}
8... Nc6 {[%clk 0:02:31]} 9. Ne2 {[%clk 0:02:49.8]} 9... e6 {[%clk 0:02:29.2]}
10. c3 {[%clk 0:02:48.8]} 10... Bd6 {[%clk 0:02:29.2]} 11. Qg3 {[%clk
0:02:30.5]} 11... Bxf4 {[%clk 0:02:26.2]} 12. Nxf4 {[%clk 0:02:30]} 12... O-O
{[%clk 0:02:22.4]} 13. Bd3 {[%clk 0:02:29]} 13... Re8 {[%clk 0:02:12.9]} 14. O-O
{[%clk 0:02:28.3]} 14... Rc8 {[%clk 0:01:55.6]} 15. Rae1 {[%clk 0:02:21.6]}
15... b5 {[%clk 0:01:48.6]} 16. Re3 {[%clk 0:01:35.6]} 16... g6 {[%clk
0:01:47.3]} 17. Rfe1 {[%clk 0:01:22.3]} 17... Qb6 {[%clk 0:01:21.2]} 18. Bxg6
{[%clk 0:01:01.5]} 18... hxg6 {[%clk 0:01:15.5]} 19. Nxg6 {[%clk 0:01:01.6]}
19... Qc7 {[%clk 0:00:58.8]} 20. Ne7+ {[%clk 0:00:23.8]} 20... Kf8 {[%clk
0:00:58.4]} 21. Nxc8 {[%clk 0:00:23.4]} 21... Qxg3 {[%clk 0:00:54.8]} 22. Rxg3
{[%clk 0:00:15.2]} 22... Rxc8 {[%clk 0:00:55.4]} 23. h4 {[%clk 0:00:14]} 23...
Ne4 {[%clk 0:00:52.8]} 24. Rge3 {[%clk 0:00:12.3]} 24... Ke7 {[%clk 0:00:52.8]}
25. f3 {[%clk 0:00:12.4]} 25... Nf6 {[%clk 0:00:52.9]} 26. Kf2 {[%clk
0:00:11.8]} 26... Na5 {[%clk 0:00:53]} 27. g4 {[%clk 0:00:09.8]} 27... Nc4
{[%clk 0:00:53.2]} 28. R3e2 {[%clk 0:00:10.4]} 28... a5 {[%clk 0:00:44]} 29. a3
{[%clk 0:00:08.8]} 29... Rb8 {[%clk 0:00:42]} 30. h5 {[%clk 0:00:07.8]} 30... b4
{[%clk 0:00:36.4]} 31. axb4 {[%clk 0:00:08.7]} 31... axb4 {[%clk 0:00:37.3]} 32.
Ra1 {[%clk 0:00:07]} 32... bxc3 {[%clk 0:00:32.8]} 33. bxc3 {[%clk 0:00:07.9]}
33... Rb3 {[%clk 0:00:33.3]} 34. h6 {[%clk 0:00:06.5]} 34... Nh7 {[%clk
0:00:31.6]} 35. f4 {[%clk 0:00:05.1]} 35... Rxc3 {[%clk 0:00:31.1]} 36. g5
{[%clk 0:00:05.6]} 36... Rd3 {[%clk 0:00:31]} 37. Ra7+ {[%clk 0:00:04.8]} 37...
Kf8 {[%clk 0:00:28.1]} 38. g6 {[%clk 0:00:04.8]} 38... fxg6 {[%clk 0:00:20.9]}
39. Rxh7 {[%clk 0:00:04.3]} 39... Kg8 {[%clk 0:00:16.6]} 40. Rg7+ {[%clk
0:00:04]} 40... Kh8 {[%clk 0:00:16.9]} 41. Rxe6 {[%clk 0:00:04.4]} 41... Rd2+
{[%clk 0:00:09.9]} 42. Ke1 {[%clk 0:00:02.9]} 42... Rxd4 {[%clk 0:00:04.4]} 43.
Re8# {[%clk 0:00:03]} 1-0

[Event "*** Titled Tuesday Blitz"]
[Site "Chess.com"]
[Date "2021.03.09"]
[Round "5"]
[White "annacramling"]
[Black "ecwinslow"]
[Result "1-0"]
[WhiteElo "2034"]
[BlackElo "2205"]
[TimeControl "180+1"]
[EndTime "10:59:13 PST"]
[Termination "annacramling won by resignation"]

1. d4 {[%clk 0:02:46.5]} 1... Nf6 {[%clk 0:02:58.7]} 2. c4 {[%clk 0:02:43.6]}
2... e6 {[%clk 0:02:57.2]} 3. Nc3 {[%clk 0:02:40.5]} 3... c5 {[%clk 0:02:56.8]}
4. d5 {[%clk 0:02:40.1]} 4... exd5 {[%clk 0:02:56.8]} 5. cxd5 {[%clk 0:02:41]}
5... d6 {[%clk 0:02:56.9]} 6. e4 {[%clk 0:02:41.5]} 6... g6 {[%clk 0:02:56.4]}
7. f4 {[%clk 0:02:41.4]} 7... Bg7 {[%clk 0:02:55.9]} 8. Bb5+ {[%clk 0:02:42]}
8... Nfd7 {[%clk 0:02:55.7]} 9. Be2 {[%clk 0:02:40.6]} 9... O-O {[%clk 0:02:48]}
10. Nf3 {[%clk 0:02:40.4]} 10... f5 {[%clk 0:02:39.1]} 11. O-O {[%clk
0:02:29.5]} 11... Nf6 {[%clk 0:02:18]} 12. e5 {[%clk 0:02:26.3]} 12... dxe5
{[%clk 0:02:15.6]} 13. fxe5 {[%clk 0:02:27.2]} 13... Ng4 {[%clk 0:02:15]} 14. d6
{[%clk 0:02:10.3]} 14... Be6 {[%clk 0:02:04.3]} 15. Bf4 {[%clk 0:01:48.7]} 15...
Nc6 {[%clk 0:01:58.1]} 16. Ng5 {[%clk 0:01:41.5]} 16... Qd7 {[%clk 0:01:46.1]}
17. Nxe6 {[%clk 0:01:34.5]} 17... Qxe6 {[%clk 0:01:45.4]} 18. Bxg4 {[%clk
0:00:49.4]} 18... fxg4 {[%clk 0:01:39.4]} 19. Ne4 {[%clk 0:00:49.3]} 19... Rxf4
{[%clk 0:01:20.3]} 20. Rxf4 {[%clk 0:00:48.1]} 20... Bxe5 {[%clk 0:01:20.3]} 21.
Qxg4 {[%clk 0:00:34.6]} 21... Bd4+ {[%clk 0:00:49.6]} 22. Kh1 {[%clk 0:00:32.9]}
22... Qxg4 {[%clk 0:00:48.7]} 23. Rxg4 {[%clk 0:00:33.4]} 23... Rd8 {[%clk
0:00:46.2]} 24. Rf1 {[%clk 0:00:26.9]} 24... Ne5 {[%clk 0:00:43.1]} 25. Rgf4
{[%clk 0:00:25.5]} 25... Nd3 {[%clk 0:00:41.5]} 26. R4f3 {[%clk 0:00:16.1]}
26... Nxb2 {[%clk 0:00:40.2]} 27. Rb3 {[%clk 0:00:13.7]} 27... b6 {[%clk
0:00:37.6]} 28. g3 {[%clk 0:00:09.3]} 28... c4 {[%clk 0:00:34.4]} 29. Rb4 {[%clk
0:00:06.8]} 29... Be5 {[%clk 0:00:32.6]} 30. Re1 {[%clk 0:00:02.7]} 30... Kg7
{[%clk 0:00:31.8]} 31. Ng5 {[%clk 0:00:02.4]} 31... Kf6 {[%clk 0:00:26.8]} 32.
Nxh7+ {[%clk 0:00:01.5]} 32... Ke6 {[%clk 0:00:25.8]} 33. Ng5+ {[%clk
0:00:01.9]} 33... Kf5 {[%clk 0:00:25.7]} 34. Rxe5+ {[%clk 0:00:01.2]} 34... Kxe5
{[%clk 0:00:26]} 35. Rxb2 {[%clk 0:00:01.8]} 35... Rxd6 {[%clk 0:00:24.4]} 36.
Nf7+ {[%clk 0:00:02.1]} 36... Ke6 {[%clk 0:00:24.2]} 37. Nxd6 {[%clk 0:00:03]}
37... Kxd6 {[%clk 0:00:24.5]} 38. Rc2 {[%clk 0:00:03.5]} 38... b5 {[%clk
0:00:24.5]} 39. Kg2 {[%clk 0:00:04.4]} 39... Kd5 {[%clk 0:00:24.8]} 40. Kf3
{[%clk 0:00:04.8]} 40... Kd4 {[%clk 0:00:25.4]} 41. Ke2 {[%clk 0:00:05]} 41...
b4 {[%clk 0:00:25.7]} 42. h4 {[%clk 0:00:04]} 42... a5 {[%clk 0:00:26.2]} 43. g4
{[%clk 0:00:04]} 43... a4 {[%clk 0:00:25.2]} 44. h5 {[%clk 0:00:04]} 44... gxh5
{[%clk 0:00:25.7]} 45. gxh5 {[%clk 0:00:04]} 45... b3 {[%clk 0:00:26.4]} 46.
axb3 {[%clk 0:00:04.2]} 46... axb3 {[%clk 0:00:25.4]} 47. Rd2+ {[%clk
0:00:04.1]} 47... Ke4 {[%clk 0:00:24.9]} 48. h6 {[%clk 0:00:02.2]} 48... c3
{[%clk 0:00:25.2]} 49. Rd1 {[%clk 0:00:02.6]} 49... c2 {[%clk 0:00:24.1]} 50.
Re1 {[%clk 0:00:01.7]} 50... Kd4 {[%clk 0:00:20.6]} 51. Kd2 {[%clk 0:00:02]}
51... Kc4 {[%clk 0:00:20.1]} 52. h7 {[%clk 0:00:01.8]} 1-0

[Event "*** Titled Tuesday Blitz"]
[Site "Chess.com"]
[Date "2021.03.09"]
[Round "5"]
[White "Sagar_Raina"]
[Black "sau6on"]
[Result "1-0"]
[WhiteElo "2286"]
[BlackElo "2443"]
[TimeControl "180+1"]
[EndTime "10:59:17 PST"]
[Termination "Sagar_Raina won by checkmate"]

1. d4 {[%clk 0:03:00.9]} 1... d5 {[%clk 0:02:59.7]} 2. c4 {[%clk 0:03:00.3]}
2... Nc6 {[%clk 0:02:59.6]} 3. cxd5 {[%clk 0:02:50.9]} 3... Qxd5 {[%clk
0:03:00.5]} 4. e3 {[%clk 0:02:46.8]} 4... e5 {[%clk 0:02:59.8]} 5. Nc3 {[%clk
0:02:46.7]} 5... Bb4 {[%clk 0:02:59.7]} 6. Bd2 {[%clk 0:02:46.8]} 6... Bxc3
{[%clk 0:02:59.7]} 7. Bxc3 {[%clk 0:02:44.2]} 7... exd4 {[%clk 0:02:59.2]} 8.
Ne2 {[%clk 0:02:44.1]} 8... Nf6 {[%clk 0:02:57.5]} 9. Nxd4 {[%clk 0:02:41.1]}
9... O-O {[%clk 0:02:57.7]} 10. Nxc6 {[%clk 0:02:30]} 10... Qxc6 {[%clk
0:02:55.7]} 11. Rc1 {[%clk 0:02:29.6]} 11... Re8 {[%clk 0:02:40.8]} 12. Qf3
{[%clk 0:02:04.2]} 12... Ne4 {[%clk 0:02:18.2]} 13. Bd3 {[%clk 0:01:43.3]} 13...
Qa4 {[%clk 0:02:08.2]} 14. O-O {[%clk 0:01:37.3]} 14... Nxc3 {[%clk 0:01:39]}
15. Rxc3 {[%clk 0:01:32.7]} 15... c6 {[%clk 0:01:33.8]} 16. Rc4 {[%clk
0:01:23.4]} 16... Qxa2 {[%clk 0:00:19.8]} 17. Bxh7+ {[%clk 0:01:18.4]} 17... Kf8
{[%clk 0:00:18.1]} 18. Rh4 {[%clk 0:01:08.7]} 18... Be6 {[%clk 0:00:14.4]} 19.
Qg3 {[%clk 0:00:30.8]} 19... Qxb2 {[%clk 0:00:10.2]} 20. Qd6+ {[%clk 0:00:28.1]}
20... Re7 {[%clk 0:00:09.2]} 21. Bd3 {[%clk 0:00:23.2]} 21... g6 {[%clk
0:00:07.2]} 22. Bxg6 {[%clk 0:00:17.7]} 22... fxg6 {[%clk 0:00:05.5]} 23. Rh7
{[%clk 0:00:17.5]} 23... Qf6 {[%clk 0:00:03.7]} 24. Rd1 {[%clk 0:00:15.5]} 24...
Re8 {[%clk 0:00:03]} 25. h4 {[%clk 0:00:12.7]} 25... Kg8 {[%clk 0:00:03.2]} 26.
Rxe7 {[%clk 0:00:05.4]} 26... Qxe7 {[%clk 0:00:04.1]} 27. Qg3 {[%clk 0:00:04.6]}
27... Kg7 {[%clk 0:00:03.8]} 28. h5 {[%clk 0:00:04.5]} 28... Qf7 {[%clk
0:00:02.8]} 29. Rd6 {[%clk 0:00:02.3]} 29... Re7 {[%clk 0:00:02.6]} 30. h6+
{[%clk 0:00:02.3]} 30... Kxh6 {[%clk 0:00:02.4]} 31. Qh4+ {[%clk 0:00:02.8]}
31... Kg7 {[%clk 0:00:02.8]} 32. Rd8 {[%clk 0:00:03.4]} 32... Re8 {[%clk
0:00:01.6]} 33. Rd4 {[%clk 0:00:03.8]} 33... Re7 {[%clk 0:00:01.9]} 34. Rf4
{[%clk 0:00:04.1]} 34... Qe8 {[%clk 0:00:02.1]} 35. Qf6+ {[%clk 0:00:04.5]}
35... Kg8 {[%clk 0:00:02]} 36. Rh4 {[%clk 0:00:04.7]} 36... Rg7 {[%clk
0:00:02.9]} 37. Rh6 {[%clk 0:00:03.5]} 37... Qe7 {[%clk 0:00:03.4]} 38. Qd4
{[%clk 0:00:03]} 38... Qf7 {[%clk 0:00:03.8]} 39. Rh3 {[%clk 0:00:02.7]} 39...
Qf8 {[%clk 0:00:04.2]} 40. Rf3 {[%clk 0:00:03]} 40... Qe7 {[%clk 0:00:04.4]} 41.
Qe5 {[%clk 0:00:02.6]} 41... Bd5 {[%clk 0:00:05.3]} 42. Qb8+ {[%clk 0:00:02.4]}
42... Kh7 {[%clk 0:00:05.2]} 43. Rh3+ {[%clk 0:00:02.7]} 43... Qh4 {[%clk
0:00:05.5]} 44. Rxh4# {[%clk 0:00:02.3]} 1-0

[Event "*** Titled Tuesday Blitz"]
[Site "Chess.com"]
[Date "2021.03.09"]
[Round "5"]
[White "deribas12345"]
[Black "kuhlmann"]
[Result "1-0"]
[WhiteElo "2547"]
[BlackElo "2399"]
[TimeControl "180+1"]
[EndTime "10:59:18 PST"]
[Termination "deribas12345 won by resignation"]

1. d4 {[%clk 0:02:56]} 1... a5 {[%clk 0:03:00.9]} 2. e4 {[%clk 0:02:55.7]} 2...
g6 {[%clk 0:03:01.8]} 3. h4 {[%clk 0:02:54.8]} 3... Bg7 {[%clk 0:03:02.7]} 4. h5
{[%clk 0:02:55.4]} 4... d6 {[%clk 0:02:57.1]} 5. h6 {[%clk 0:02:54.4]} 5... Bf8
{[%clk 0:02:56.4]} 6. Nf3 {[%clk 0:02:53.9]} 6... Nd7 {[%clk 0:02:55.8]} 7. Nc3
{[%clk 0:02:53.2]} 7... c6 {[%clk 0:02:53.5]} 8. Bc4 {[%clk 0:02:50.7]} 8... e6
{[%clk 0:02:51.7]} 9. Bf4 {[%clk 0:02:42.7]} 9... b5 {[%clk 0:02:48.3]} 10. Be2
{[%clk 0:02:38.8]} 10... b4 {[%clk 0:02:43.7]} 11. Na4 {[%clk 0:02:36.1]} 11...
Qc7 {[%clk 0:02:39.1]} 12. Qd2 {[%clk 0:02:32.6]} 12... e5 {[%clk 0:02:34.2]}
13. dxe5 {[%clk 0:02:29.6]} 13... dxe5 {[%clk 0:02:29.1]} 14. Be3 {[%clk
0:02:27.1]} 14... Ngf6 {[%clk 0:02:23.7]} 15. Ng5 {[%clk 0:02:22.2]} 15... Be7
{[%clk 0:01:49]} 16. O-O-O {[%clk 0:02:17.4]} 16... Ba6 {[%clk 0:01:38.8]} 17.
Bxa6 {[%clk 0:02:15.6]} 17... Rxa6 {[%clk 0:01:38.5]} 18. Qd3 {[%clk 0:02:08]}
18... Ra8 {[%clk 0:01:37]} 19. Qc4 {[%clk 0:02:07.1]} 19... O-O {[%clk 0:01:37]}
20. f3 {[%clk 0:02:07.1]} 20... Ne8 {[%clk 0:01:26.5]} 21. b3 {[%clk 0:01:39.9]}
21... Nd6 {[%clk 0:01:10.9]} 22. Rxd6 {[%clk 0:01:34.5]} 22... Bxd6 {[%clk
0:00:53.9]} 23. Rd1 {[%clk 0:01:32.7]} 23... Nf6 {[%clk 0:00:48.7]} 24. Ne6
{[%clk 0:01:04.5]} 24... fxe6 {[%clk 0:00:44.9]} 25. Qxe6+ {[%clk 0:01:04.9]}
25... Qf7 {[%clk 0:00:41.2]} 26. Qxf7+ {[%clk 0:01:01.5]} 26... Kxf7 {[%clk
0:00:35.7]} 27. Rxd6 {[%clk 0:01:02.4]} 27... Rac8 {[%clk 0:00:33.8]} 28. Nb6
{[%clk 0:01:00.6]} 28... Rc7 {[%clk 0:00:32.7]} 29. Nc4 {[%clk 0:01:00.7]} 29...
Re8 {[%clk 0:00:30.5]} 30. Nxa5 {[%clk 0:00:48.5]} 30... Re6 {[%clk 0:00:30.6]}
31. Nc4 {[%clk 0:00:45.9]} 31... Rxd6 {[%clk 0:00:26.3]} 32. Nxd6+ {[%clk
0:00:46.8]} 32... Ke6 {[%clk 0:00:27.2]} 33. Nc4 {[%clk 0:00:46.9]} 33... Nd7
{[%clk 0:00:23.3]} 34. Kb2 {[%clk 0:00:45.2]} 34... Rc8 {[%clk 0:00:22.4]} 35.
Bd2 {[%clk 0:00:39.1]} 35... c5 {[%clk 0:00:20.9]} 36. Be3 {[%clk 0:00:39.2]}
36... g5 {[%clk 0:00:19.7]} 37. a4 {[%clk 0:00:35.1]} 37... bxa3+ {[%clk
0:00:18.7]} 38. Kxa3 {[%clk 0:00:36]} 38... Rg8 {[%clk 0:00:19]} 39. g4 {[%clk
0:00:27.8]} 39... Rg6 {[%clk 0:00:19]} 40. Ka4 {[%clk 0:00:24.6]} 40... Rxh6
{[%clk 0:00:19.1]} 41. Bxg5 {[%clk 0:00:24.7]} 41... Rh2 {[%clk 0:00:19.8]} 42.
Nd2 {[%clk 0:00:24.1]} 42... Rf2 {[%clk 0:00:19]} 43. Kb5 {[%clk 0:00:22.4]}
43... Kd6 {[%clk 0:00:19.3]} 44. Bh6 {[%clk 0:00:14.5]} 44... Rh2 {[%clk
0:00:18.1]} 45. Bg5 {[%clk 0:00:14.6]} 45... Rf2 {[%clk 0:00:18.2]} 46. Be3
{[%clk 0:00:14.6]} 46... Re2 {[%clk 0:00:17.8]} 47. c3 {[%clk 0:00:15.2]} 47...
Rxe3 {[%clk 0:00:17.7]} 48. Nc4+ {[%clk 0:00:15.2]} 48... Ke6 {[%clk 0:00:17.7]}
49. Nxe3 {[%clk 0:00:16.1]} 49... Kd6 {[%clk 0:00:17.5]} 50. b4 {[%clk
0:00:15.8]} 50... cxb4 {[%clk 0:00:17.2]} 51. cxb4 {[%clk 0:00:16.7]} 51... Nb8
{[%clk 0:00:16.3]} 52. Nc4+ {[%clk 0:00:15.7]} 52... Ke6 {[%clk 0:00:16.3]} 53.
Nb6 {[%clk 0:00:15.9]} 1-0